[Event "*** Titled Tuesday Blitz"]
[Site "Chess.com"]
[Date "2020.11.24"]
[Round "3"]
[White "RaneshRatnesan"]
[Black "SlavenPastar"]
[Result "0-1"]
[WhiteElo "2132"]
[BlackElo "2477"]
[TimeControl "180+1"]
[EndTime "10:45:54 PST"]
[Termination "SlavenPastar won by resignation"]

1. d4 {[%clk 0:01:34.4]} 1... b6 {[%clk 0:03:00.9]} 2. c4 {[%clk 0:01:32.9]}
2... Bb7 {[%clk 0:02:52.7]} 3. Nc3 {[%clk 0:01:33.1]} 3... e6 {[%clk 0:02:52]}
4. Nf3 {[%clk 0:01:32.3]} 4... Nf6 {[%clk 0:02:51.3]} 5. Bg5 {[%clk 0:01:31.6]}
5... Bb4 {[%clk 0:02:50.8]} 6. e3 {[%clk 0:01:32]} 6... h6 {[%clk 0:02:49.3]} 7.
Bh4 {[%clk 0:01:32]} 7... g5 {[%clk 0:02:48.4]} 8. Bg3 {[%clk 0:01:32.6]} 8...
Ne4 {[%clk 0:02:47.7]} 9. Qc2 {[%clk 0:01:32.7]} 9... Bxc3+ {[%clk 0:02:42.6]}
10. bxc3 {[%clk 0:01:32.8]} 10... Nxg3 {[%clk 0:02:42.9]} 11. hxg3 {[%clk
0:01:32.9]} 11... g4 {[%clk 0:02:39.2]} 12. Ne5 {[%clk 0:01:29.3]} 12... Qg5
{[%clk 0:02:26.2]} 13. Rb1 {[%clk 0:01:23]} 13... Nc6 {[%clk 0:02:10.6]} 14. Nd3
{[%clk 0:01:23.1]} 14... d6 {[%clk 0:01:47.2]} 15. Nf4 {[%clk 0:01:22.2]} 15...
Ne7 {[%clk 0:01:34.3]} 16. Bd3 {[%clk 0:01:01.9]} 16... h5 {[%clk 0:01:30.5]}
17. Be4 {[%clk 0:01:01.4]} 17... c6 {[%clk 0:01:17.5]} 18. Rh4 {[%clk
0:00:51.7]} 18... e5 {[%clk 0:01:04.5]} 19. Ne2 {[%clk 0:00:43.9]} 19... f5
{[%clk 0:00:55]} 20. Bd3 {[%clk 0:00:33.7]} 20... e4 {[%clk 0:00:50.7]} 21. Bxe4
{[%clk 0:00:34]} 21... fxe4 {[%clk 0:00:50.7]} 22. Qxe4 {[%clk 0:00:34.9]} 22...
O-O-O {[%clk 0:00:40.6]} 23. Nf4 {[%clk 0:00:30.4]} 23... Qf5 {[%clk 0:00:20.6]}
24. Qxf5+ {[%clk 0:00:20.2]} 24... Nxf5 {[%clk 0:00:21.5]} 25. Rh2 {[%clk
0:00:19.5]} 25... h4 {[%clk 0:00:18.6]} 26. gxh4 {[%clk 0:00:19.2]} 26... Rxh4
{[%clk 0:00:19]} 27. Rxh4 {[%clk 0:00:19.4]} 27... Nxh4 {[%clk 0:00:19.9]} 28.
Ke2 {[%clk 0:00:19.5]} 28... c5 {[%clk 0:00:18.5]} 29. d5 {[%clk 0:00:19.4]}
29... Ba6 {[%clk 0:00:18.5]} 30. Kd3 {[%clk 0:00:19.8]} 30... Rg8 {[%clk
0:00:16]} 31. Rh1 {[%clk 0:00:19.3]} 31... Ng6 {[%clk 0:00:16.5]} 32. Nxg6
{[%clk 0:00:19]} 32... Rxg6 {[%clk 0:00:17.4]} 33. Rh8+ {[%clk 0:00:19.4]} 33...
Kb7 {[%clk 0:00:12.9]} 34. Rh7+ {[%clk 0:00:19.8]} 34... Kb8 {[%clk 0:00:13]}
35. f4 {[%clk 0:00:20.2]} 35... gxf3 {[%clk 0:00:09.3]} 36. gxf3 {[%clk
0:00:21.1]} 36... Bc8 {[%clk 0:00:09.5]} 37. Ke4 {[%clk 0:00:20.8]} 37... Rg2
{[%clk 0:00:09]} 38. f4 {[%clk 0:00:20.6]} 38... Rxa2 {[%clk 0:00:09.3]} 39. f5
{[%clk 0:00:21.3]} 39... Rf2 {[%clk 0:00:09.1]} 40. Rh5 {[%clk 0:00:20.2]} 40...
a5 {[%clk 0:00:09.1]} 41. Kd3 {[%clk 0:00:20.5]} 41... a4 {[%clk 0:00:09.5]} 42.
e4 {[%clk 0:00:21]} 42... a3 {[%clk 0:00:09.8]} 43. Rh1 {[%clk 0:00:21.1]} 43...
a2 {[%clk 0:00:08.1]} 44. Ra1 {[%clk 0:00:21.6]} 44... Rb2 {[%clk 0:00:07.4]}
45. f6 {[%clk 0:00:20.4]} 45... Rf2 {[%clk 0:00:05.9]} 46. f7 {[%clk 0:00:19.9]}
46... Rxf7 {[%clk 0:00:05.5]} 47. Rxa2 {[%clk 0:00:20.6]} 47... Rf3+ {[%clk
0:00:05.7]} 48. Ke2 {[%clk 0:00:20.3]} 48... Rxc3 {[%clk 0:00:05.4]} 49. Rb2
{[%clk 0:00:20.9]} 49... Rxc4 {[%clk 0:00:05.4]} 50. Rxb6+ {[%clk 0:00:20.8]}
50... Kc7 {[%clk 0:00:05.1]} 51. Rc6+ {[%clk 0:00:21.4]} 51... Kd7 {[%clk
0:00:05.7]} 52. Kd3 {[%clk 0:00:22.1]} 52... Rd4+ {[%clk 0:00:06]} 53. Ke3
{[%clk 0:00:22.5]} 53... Bb7 {[%clk 0:00:06.6]} 54. Rb6 {[%clk 0:00:22.5]} 54...
Kc7 {[%clk 0:00:07.5]} 55. Rb1 {[%clk 0:00:22.5]} 55... Rb4 {[%clk 0:00:07.9]}
56. Rh1 {[%clk 0:00:23.1]} 56... Rb3+ {[%clk 0:00:08.2]} 57. Kd2 {[%clk
0:00:22.9]} 57... Rb2+ {[%clk 0:00:08.3]} 58. Kc3 {[%clk 0:00:23.1]} 58... Rb4
{[%clk 0:00:09.2]} 59. Kd3 {[%clk 0:00:22.9]} 59... Rd4+ {[%clk 0:00:09.1]} 60.
Ke3 {[%clk 0:00:23.6]} 60... Kb6 {[%clk 0:00:09.3]} 61. Rh6 {[%clk 0:00:23.9]}
61... Kb5 {[%clk 0:00:08]} 62. Rxd6 {[%clk 0:00:23.9]} 62... Rb4 {[%clk
0:00:08]} 63. e5 {[%clk 0:00:22.3]} 63... Kc4 {[%clk 0:00:08.5]} 64. e6 {[%clk
0:00:22.8]} 64... Rb3+ {[%clk 0:00:07.6]} 65. Kf4 {[%clk 0:00:22.8]} 65... Bxd5
{[%clk 0:00:07.8]} 66. Ke5 {[%clk 0:00:22.6]} 66... Re3+ {[%clk 0:00:07.7]} 67.
Kf6 {[%clk 0:00:22.2]} 67... Rxe6+ {[%clk 0:00:08.6]} 68. Rxe6 {[%clk
0:00:21.6]} 68... Bxe6 {[%clk 0:00:09.5]} 69. Kxe6 {[%clk 0:00:22.5]} 69... Kd4
{[%clk 0:00:09.8]} 0-1

[Event "*** Titled Tuesday Blitz"]
[Site "Chess.com"]
[Date "2020.11.24"]
[Round "3"]
[White "biostatistician"]
[Black "monalize"]
[Result "1-0"]
[WhiteElo "2547"]
[BlackElo "2370"]
[TimeControl "180+1"]
[EndTime "10:45:55 PST"]
[Termination "biostatistician won on time"]

1. d4 {[%clk 0:02:59]} 1... Nf6 {[%clk 0:02:58.5]} 2. Nf3 {[%clk 0:02:59.9]}
2... d6 {[%clk 0:02:58.6]} 3. c4 {[%clk 0:02:59.9]} 3... g6 {[%clk 0:02:58.4]}
4. Nc3 {[%clk 0:03:00.2]} 4... Bg7 {[%clk 0:02:58.1]} 5. e4 {[%clk 0:03:00.7]}
5... O-O {[%clk 0:02:57.8]} 6. Be2 {[%clk 0:03:01.2]} 6... e5 {[%clk 0:02:54.5]}
7. dxe5 {[%clk 0:03:02.1]} 7... dxe5 {[%clk 0:02:54]} 8. Qxd8 {[%clk 0:03:03]}
8... Rxd8 {[%clk 0:02:53]} 9. Bg5 {[%clk 0:03:03.9]} 9... Re8 {[%clk 0:02:47.4]}
10. Nd5 {[%clk 0:03:04]} 10... Nxd5 {[%clk 0:02:47]} 11. cxd5 {[%clk 0:03:04.9]}
11... c6 {[%clk 0:02:47.4]} 12. Bc4 {[%clk 0:03:05.5]} 12... cxd5 {[%clk
0:02:44.1]} 13. Bxd5 {[%clk 0:03:06.4]} 13... Nc6 {[%clk 0:02:44.1]} 14. O-O-O
{[%clk 0:03:07]} 14... h6 {[%clk 0:02:26.4]} 15. Be3 {[%clk 0:03:04]} 15... Bf8
{[%clk 0:02:25.4]} 16. Kb1 {[%clk 0:02:54.4]} 16... Kg7 {[%clk 0:02:24]} 17. h4
{[%clk 0:02:51.7]} 17... Bg4 {[%clk 0:02:18.9]} 18. Rc1 {[%clk 0:02:50.2]} 18...
Rac8 {[%clk 0:01:38.4]} 19. Bxc6 {[%clk 0:02:41.2]} 19... bxc6 {[%clk 0:01:38]}
20. Bxa7 {[%clk 0:02:40.8]} 20... c5 {[%clk 0:01:34]} 21. Rhd1 {[%clk
0:02:31.2]} 21... c4 {[%clk 0:01:24.8]} 22. Rd5 {[%clk 0:02:20]} 22... f6 {[%clk
0:01:22.2]} 23. Be3 {[%clk 0:02:01.2]} 23... Be6 {[%clk 0:01:19.8]} 24. Ra5
{[%clk 0:01:58.8]} 24... Rc7 {[%clk 0:01:15.6]} 25. Nd2 {[%clk 0:01:55.5]} 25...
Rec8 {[%clk 0:01:13.5]} 26. Ra7 {[%clk 0:01:54.7]} 26... Rxa7 {[%clk 0:01:09.1]}
27. Bxa7 {[%clk 0:01:55.6]} 27... Bb4 {[%clk 0:01:09.1]} 28. Be3 {[%clk
0:01:53.2]} 28... g5 {[%clk 0:00:53.8]} 29. hxg5 {[%clk 0:01:53.2]} 29... hxg5
{[%clk 0:00:52.8]} 30. Nf1 {[%clk 0:01:08.7]} 30... g4 {[%clk 0:00:49.5]} 31.
Ng3 {[%clk 0:01:07.4]} 31... Kg6 {[%clk 0:00:47.9]} 32. Ne2 {[%clk 0:01:06.7]}
32... f5 {[%clk 0:00:46.3]} 33. exf5+ {[%clk 0:01:06.4]} 33... Bxf5+ {[%clk
0:00:45.8]} 34. Ka1 {[%clk 0:01:07]} 34... Bd3 {[%clk 0:00:44.3]} 35. Nc3 {[%clk
0:01:05.9]} 35... Kf5 {[%clk 0:00:40.5]} 36. Nd5 {[%clk 0:01:05.2]} 36... Bd6
{[%clk 0:00:38.2]} 37. Nc3 {[%clk 0:00:58.7]} 37... Bb4 {[%clk 0:00:28.6]} 38.
g3 {[%clk 0:00:52.3]} 38... Bxc3 {[%clk 0:00:26.7]} 39. Rxc3 {[%clk 0:00:51.8]}
39... Rh8 {[%clk 0:00:25.6]} 40. Rc1 {[%clk 0:00:51.2]} 40... Ke4 {[%clk
0:00:25.1]} 41. b3 {[%clk 0:00:51.5]} 41... cxb3 {[%clk 0:00:23.5]} 42. axb3
{[%clk 0:00:52.4]} 42... Rb8 {[%clk 0:00:17.5]} 43. Kb2 {[%clk 0:00:52.8]} 43...
Rb5 {[%clk 0:00:16.8]} 44. Bc5 {[%clk 0:00:52.1]} 44... Kf3 {[%clk 0:00:16.1]}
45. b4 {[%clk 0:00:52.4]} 45... Ke2 {[%clk 0:00:15.6]} 46. Kc3 {[%clk
0:00:50.5]} 46... Be4 {[%clk 0:00:14.5]} 47. Ra1 {[%clk 0:00:48.9]} 47... Rb7
{[%clk 0:00:14.1]} 48. Ra6 {[%clk 0:00:46.4]} 48... Bf3 {[%clk 0:00:13.9]} 49.
Re6 {[%clk 0:00:44.9]} 49... e4 {[%clk 0:00:13.8]} 50. Kc4 {[%clk 0:00:44.8]}
50... Rc7 {[%clk 0:00:13.3]} 51. b5 {[%clk 0:00:44]} 51... Kf1 {[%clk
0:00:11.5]} 52. b6 {[%clk 0:00:43.7]} 52... Rb7 {[%clk 0:00:11.6]} 53. Kd4
{[%clk 0:00:43.5]} 53... Kg2 {[%clk 0:00:09.9]} 54. Kc4 {[%clk 0:00:41.6]} 54...
Be2+ {[%clk 0:00:09.2]} 55. Kb4 {[%clk 0:00:41.4]} 55... Bf3 {[%clk 0:00:09.3]}
56. Kb5 {[%clk 0:00:40.6]} 56... e3 {[%clk 0:00:08.7]} 57. Bxe3 {[%clk
0:00:40.2]} 57... Bd5 {[%clk 0:00:07.7]} 58. Rd6 {[%clk 0:00:40.1]} 58... Bf3
{[%clk 0:00:07.5]} 59. Rd8 {[%clk 0:00:39.8]} 59... Rf7 {[%clk 0:00:06.7]} 60.
Rc8 {[%clk 0:00:39.9]} 60... Be2+ {[%clk 0:00:03.6]} 61. Kb4 {[%clk 0:00:39.3]}
61... Bf3 {[%clk 0:00:03.1]} 62. Rc7 {[%clk 0:00:39.6]} 62... Rf8 {[%clk
0:00:02.6]} 63. Kb5 {[%clk 0:00:38.9]} 63... Rb8 {[%clk 0:00:02.3]} 64. Ka6
{[%clk 0:00:35.4]} 64... Ra8+ {[%clk 0:00:02.3]} 65. Ra7 {[%clk 0:00:36]} 1-0

[Event "*** Titled Tuesday Blitz"]
[Site "Chess.com"]
[Date "2020.11.24"]
[Round "3"]
[White "swimmerchess"]
[Black "maximnovik"]
[Result "1-0"]
[WhiteElo "2784"]
[BlackElo "2512"]
[TimeControl "180+1"]
[EndTime "10:45:56 PST"]
[Termination "swimmerchess won by checkmate"]

1. e4 {[%clk 0:03:00.9]} 1... c6 {[%clk 0:02:58.4]} 2. d4 {[%clk 0:03:00.5]}
2... d5 {[%clk 0:02:57.4]} 3. e5 {[%clk 0:02:59]} 3... Bf5 {[%clk 0:02:55.1]} 4.
c4 {[%clk 0:02:59]} 4... e6 {[%clk 0:02:54.2]} 5. Nc3 {[%clk 0:02:59]} 5... Ne7
{[%clk 0:02:49]} 6. Nge2 {[%clk 0:02:58.8]} 6... dxc4 {[%clk 0:02:42.8]} 7. Ng3
{[%clk 0:02:57.6]} 7... c5 {[%clk 0:02:41]} 8. d5 {[%clk 0:02:07]} 8... exd5
{[%clk 0:02:33.1]} 9. Nxf5 {[%clk 0:02:05.1]} 9... Nxf5 {[%clk 0:02:32.6]} 10.
Nxd5 {[%clk 0:02:04.2]} 10... b5 {[%clk 0:02:26.6]} 11. a4 {[%clk 0:02:01.7]}
11... Nd4 {[%clk 0:02:23.3]} 12. Ne3 {[%clk 0:01:41]} 12... Nbc6 {[%clk
0:02:18.3]} 13. axb5 {[%clk 0:01:40.6]} 13... Nxe5 {[%clk 0:02:17.6]} 14. Nxc4
{[%clk 0:01:31.6]} 14... Nxc4 {[%clk 0:02:17.4]} 15. Bxc4 {[%clk 0:01:32.5]}
15... Be7 {[%clk 0:02:15.5]} 16. O-O {[%clk 0:01:29.6]} 16... O-O {[%clk
0:02:16]} 17. Be3 {[%clk 0:01:05.1]} 17... Bf6 {[%clk 0:02:15.7]} 18. Ra6 {[%clk
0:01:03.8]} 18... Re8 {[%clk 0:02:05.7]} 19. Qa4 {[%clk 0:01:01.3]} 19... Qc8
{[%clk 0:01:32.6]} 20. Rxa7 {[%clk 0:00:54.5]} 20... Rxa7 {[%clk 0:01:24.8]} 21.
Qxa7 {[%clk 0:00:55.4]} 21... Re7 {[%clk 0:01:19.5]} 22. Qa6 {[%clk 0:00:53.8]}
22... Qb8 {[%clk 0:01:09]} 23. Ra1 {[%clk 0:00:52]} 23... Be5 {[%clk 0:01:02.6]}
24. g3 {[%clk 0:00:47.1]} 24... Nc2 {[%clk 0:01:01.4]} 25. Bxc5 {[%clk
0:00:45.7]} 25... Rc7 {[%clk 0:00:55]} 26. Ba7 {[%clk 0:00:34.2]} 26... Rxa7
{[%clk 0:00:47.9]} 27. Qxa7 {[%clk 0:00:34]} 27... Nxa1 {[%clk 0:00:47.9]} 28.
Qxa1 {[%clk 0:00:16.2]} 28... g6 {[%clk 0:00:45.7]} 29. Qa2 {[%clk 0:00:09.7]}
29... Qb7 {[%clk 0:00:38.5]} 30. b4 {[%clk 0:00:09.8]} 30... Bd4 {[%clk
0:00:36.6]} 31. Qd2 {[%clk 0:00:06.9]} 31... Qb6 {[%clk 0:00:32.9]} 32. Qf4
{[%clk 0:00:06.4]} 32... Bf6 {[%clk 0:00:28.8]} 33. Kg2 {[%clk 0:00:06.2]} 33...
Kg7 {[%clk 0:00:28.2]} 34. h4 {[%clk 0:00:06.4]} 34... h5 {[%clk 0:00:27.4]} 35.
Qe4 {[%clk 0:00:06.1]} 35... Bd4 {[%clk 0:00:20.2]} 36. Qd5 {[%clk 0:00:06.5]}
36... Qf6 {[%clk 0:00:19.4]} 37. f3 {[%clk 0:00:06.3]} 37... Bb6 {[%clk
0:00:18.7]} 38. Kh3 {[%clk 0:00:05.7]} 38... Qa1 {[%clk 0:00:15.4]} 39. Qxf7+
{[%clk 0:00:05.5]} 39... Kh6 {[%clk 0:00:14.3]} 40. Qf8+ {[%clk 0:00:04.9]}
40... Qg7 {[%clk 0:00:13.1]} 41. Qf4+ {[%clk 0:00:04.5]} 41... Kh7 {[%clk
0:00:12.7]} 42. Qd6 {[%clk 0:00:04.6]} 42... Bc7 {[%clk 0:00:11.8]} 43. Qc6
{[%clk 0:00:04.5]} 43... Qe7 {[%clk 0:00:10.8]} 44. Bd3 {[%clk 0:00:04.4]} 44...
Bd6 {[%clk 0:00:10]} 45. b6 {[%clk 0:00:04.3]} 45... Qe5 {[%clk 0:00:09.7]} 46.
f4 {[%clk 0:00:04]} 46... Qe6+ {[%clk 0:00:08.7]} 47. f5 {[%clk 0:00:03.9]}
47... gxf5 {[%clk 0:00:07.6]} 48. b7 {[%clk 0:00:04.1]} 48... Kh6 {[%clk
0:00:05.5]} 49. b8=Q {[%clk 0:00:03.8]} 49... f4+ {[%clk 0:00:05.2]} 50. Kg2
{[%clk 0:00:02.3]} 50... f3+ {[%clk 0:00:05.3]} 51. Kxf3 {[%clk 0:00:01.6]}
51... Qf7+ {[%clk 0:00:04.8]} 52. Kg2 {[%clk 0:00:01.9]} 52... Qg6 {[%clk
0:00:03.6]} 53. Bxg6 {[%clk 0:00:01.5]} 53... Kxg6 {[%clk 0:00:03.2]} 54. Qcxd6+
{[%clk 0:00:01.5]} 54... Kf5 {[%clk 0:00:03.2]} 55. Qe5+ {[%clk 0:00:02.4]}
55... Kg6 {[%clk 0:00:03.1]} 56. Qbd6+ {[%clk 0:00:03.3]} 56... Kf7 {[%clk
0:00:03]} 57. Qee7+ {[%clk 0:00:04.2]} 57... Kg8 {[%clk 0:00:03]} 58. Qdd8#
{[%clk 0:00:05.1]} 1-0

[Event "*** Titled Tuesday Blitz"]
[Site "Chess.com"]
[Date "2020.11.24"]
[Round "3"]
[White "Artyom_ChessMate"]
[Black "YoungMegaMind"]
[Result "0-1"]
[WhiteElo "2500"]
[BlackElo "2298"]
[TimeControl "180+1"]
[EndTime "10:45:56 PST"]
[Termination "YoungMegaMind won by resignation"]

1. e4 {[%clk 0:03:00.9]} 1... c6 {[%clk 0:02:59.1]} 2. d4 {[%clk 0:03:00.3]}
2... d5 {[%clk 0:02:58.1]} 3. exd5 {[%clk 0:03:01.2]} 3... cxd5 {[%clk
0:02:57.3]} 4. Bd3 {[%clk 0:03:01.8]} 4... Nc6 {[%clk 0:02:55.4]} 5. c3 {[%clk
0:03:02]} 5... Qc7 {[%clk 0:02:50.6]} 6. Ne2 {[%clk 0:03:01.6]} 6... Bg4 {[%clk
0:02:48.2]} 7. O-O {[%clk 0:02:59.2]} 7... e6 {[%clk 0:02:43.6]} 8. Qe1 {[%clk
0:02:57.9]} 8... Bxe2 {[%clk 0:02:41.9]} 9. Qxe2 {[%clk 0:02:58.8]} 9... Bd6
{[%clk 0:02:37]} 10. g3 {[%clk 0:02:56.6]} 10... Nf6 {[%clk 0:02:32.3]} 11. f4
{[%clk 0:02:51.6]} 11... O-O {[%clk 0:02:24]} 12. Nd2 {[%clk 0:02:50.6]} 12...
Rab8 {[%clk 0:01:50.5]} 13. Nf3 {[%clk 0:02:47.1]} 13... a6 {[%clk 0:01:13.1]}
14. Ne5 {[%clk 0:02:45]} 14... b5 {[%clk 0:01:04.7]} 15. a3 {[%clk 0:02:43.5]}
15... Nd7 {[%clk 0:00:34.2]} 16. g4 {[%clk 0:02:28.1]} 16... Na5 {[%clk
0:00:30.1]} 17. Bc2 {[%clk 0:01:57.2]} 17... Rfc8 {[%clk 0:00:17.7]} 18. g5
{[%clk 0:01:55.3]} 18... Nf8 {[%clk 0:00:16.8]} 19. h4 {[%clk 0:01:47]} 19...
Nc4 {[%clk 0:00:16.5]} 20. h5 {[%clk 0:01:46.8]} 20... a5 {[%clk 0:00:15.7]} 21.
Ng4 {[%clk 0:00:50.8]} 21... b4 {[%clk 0:00:11.1]} 22. axb4 {[%clk 0:00:50.3]}
22... axb4 {[%clk 0:00:10.7]} 23. Qg2 {[%clk 0:00:50.9]} 23... bxc3 {[%clk
0:00:10.4]} 24. bxc3 {[%clk 0:00:51.8]} 24... g6 {[%clk 0:00:09.9]} 25. Nf6+
{[%clk 0:00:35.9]} 25... Kh8 {[%clk 0:00:09.6]} 26. Qh3 {[%clk 0:00:27.1]} 26...
Qe7 {[%clk 0:00:09.2]} 27. Rf2 {[%clk 0:00:16.1]} 27... Rb7 {[%clk 0:00:09.4]}
28. Rh2 {[%clk 0:00:16]} 28... Rbc7 {[%clk 0:00:09.5]} 29. hxg6 {[%clk 0:00:09]}
29... fxg6 {[%clk 0:00:09.5]} 30. Qg4 {[%clk 0:00:09.3]} 30... Qg7 {[%clk
0:00:09.2]} 31. Re2 {[%clk 0:00:05.5]} 31... Be7 {[%clk 0:00:09.2]} 32. Bd2
{[%clk 0:00:03.5]} 32... Bxf6 {[%clk 0:00:09.4]} 33. gxf6 {[%clk 0:00:04.4]}
33... Qxf6 {[%clk 0:00:09.9]} 34. Be1 {[%clk 0:00:04.7]} 34... Kg7 {[%clk
0:00:09.6]} 35. Bh4 {[%clk 0:00:04.9]} 35... Qf7 {[%clk 0:00:10.1]} 36. Bg5
{[%clk 0:00:05.3]} 36... h5 {[%clk 0:00:10]} 37. Qg3 {[%clk 0:00:05]} 37... Nd6
{[%clk 0:00:10.3]} 38. Re3 {[%clk 0:00:04.8]} 38... Nf5 {[%clk 0:00:10.6]} 39.
Bxf5 {[%clk 0:00:05.1]} 39... Qxf5 {[%clk 0:00:11.5]} 40. Ra6 {[%clk 0:00:04.6]}
40... Rc6 {[%clk 0:00:11.6]} 41. Ra7+ {[%clk 0:00:04.4]} 41... R8c7 {[%clk
0:00:12.1]} 42. Ra8 {[%clk 0:00:05]} 42... Rc8 {[%clk 0:00:12.6]} 43. Ra7+
{[%clk 0:00:05.2]} 43... R6c7 {[%clk 0:00:13.2]} 44. Ra6 {[%clk 0:00:05.4]}
44... Qb1+ {[%clk 0:00:13.1]} 45. Kg2 {[%clk 0:00:04.5]} 45... Qf5 {[%clk
0:00:13.1]} 46. Qh4 {[%clk 0:00:04]} 46... Rc6 {[%clk 0:00:13]} 47. Ra7+ {[%clk
0:00:03.7]} 47... R8c7 {[%clk 0:00:13.5]} 48. Ra8 {[%clk 0:00:04.1]} 48... Rxc3
{[%clk 0:00:13.7]} 49. Rxc3 {[%clk 0:00:04.2]} 49... Rxc3 {[%clk 0:00:14]} 50.
Ra7+ {[%clk 0:00:05.1]} 50... Kg8 {[%clk 0:00:13.5]} 51. Bf6 {[%clk 0:00:05.6]}
51... Qe4+ {[%clk 0:00:13.3]} 52. Kg1 {[%clk 0:00:06.1]} 52... Rc1+ {[%clk
0:00:13.4]} 53. Kh2 {[%clk 0:00:06.7]} 53... Rh1+ {[%clk 0:00:13]} 54. Kg3
{[%clk 0:00:07.2]} 54... Qe1+ {[%clk 0:00:13.3]} 55. Kf3 {[%clk 0:00:07.1]}
55... Qf1+ {[%clk 0:00:13.5]} 56. Ke3 {[%clk 0:00:07.2]} 56... Rh3+ {[%clk
0:00:13.3]} 57. Qxh3 {[%clk 0:00:07.2]} 57... Qxh3+ {[%clk 0:00:14.2]} 58. Kd2
{[%clk 0:00:08.1]} 58... Qg2+ {[%clk 0:00:14.3]} 59. Kc3 {[%clk 0:00:08.5]}
59... Qf3+ {[%clk 0:00:14.8]} 60. Kb4 {[%clk 0:00:08.8]} 60... Qxf4 {[%clk
0:00:14.4]} 61. Be5 {[%clk 0:00:09.2]} 61... Qf7 {[%clk 0:00:13.3]} 62. Rxf7
{[%clk 0:00:08.2]} 62... Kxf7 {[%clk 0:00:14.2]} 63. Kc5 {[%clk 0:00:09]} 63...
Nd7+ {[%clk 0:00:14.5]} 64. Kd6 {[%clk 0:00:09.6]} 64... Nxe5 {[%clk 0:00:15.4]}
65. dxe5 {[%clk 0:00:09.9]} 65... g5 {[%clk 0:00:15.7]} 0-1

[Event "*** Titled Tuesday Blitz"]
[Site "Chess.com"]
[Date "2020.11.24"]
[Round "3"]
[White "MF1966Idrisov"]
[Black "hermionegrangermagic"]
[Result "0-1"]
[WhiteElo "2409"]
[BlackElo "2588"]
[TimeControl "180+1"]
[EndTime "10:45:57 PST"]
[Termination "hermionegrangermagic won on time"]

1. Nf3 {[%clk 0:03:00.9]} 1... d5 {[%clk 0:02:43.6]} 2. b3 {[%clk 0:03:00.9]}
2... Nf6 {[%clk 0:02:43]} 3. Bb2 {[%clk 0:03:01.5]} 3... c6 {[%clk 0:02:42.5]}
4. e3 {[%clk 0:03:02]} 4... g6 {[%clk 0:02:42.4]} 5. d4 {[%clk 0:03:02.6]} 5...
Bg7 {[%clk 0:02:42.6]} 6. Bd3 {[%clk 0:03:03.3]} 6... O-O {[%clk 0:02:43.2]} 7.
h3 {[%clk 0:03:03.9]} 7... Bf5 {[%clk 0:02:42.5]} 8. Nbd2 {[%clk 0:03:00.7]}
8... Ne4 {[%clk 0:02:37.9]} 9. O-O {[%clk 0:02:59.2]} 9... Nxd2 {[%clk
0:02:37.2]} 10. Qxd2 {[%clk 0:02:58.8]} 10... Bxd3 {[%clk 0:02:34.4]} 11. Qxd3
{[%clk 0:02:58.4]} 11... Nd7 {[%clk 0:02:34]} 12. Ne5 {[%clk 0:02:58.4]} 12...
Qc7 {[%clk 0:02:29.7]} 13. f4 {[%clk 0:02:56.9]} 13... Nf6 {[%clk 0:02:29.3]}
14. c4 {[%clk 0:02:52.3]} 14... e6 {[%clk 0:02:28]} 15. c5 {[%clk 0:02:46.5]}
15... Ne4 {[%clk 0:02:27.3]} 16. b4 {[%clk 0:02:45.1]} 16... a6 {[%clk
0:02:26.7]} 17. a4 {[%clk 0:02:44.5]} 17... f6 {[%clk 0:02:10.7]} 18. Nf3 {[%clk
0:02:44.3]} 18... b6 {[%clk 0:02:02.9]} 19. Nd2 {[%clk 0:02:41.1]} 19... Nxd2
{[%clk 0:01:59]} 20. Qxd2 {[%clk 0:02:40.3]} 20... bxc5 {[%clk 0:01:59.1]} 21.
bxc5 {[%clk 0:02:38.6]} 21... Rab8 {[%clk 0:01:57.6]} 22. Bc3 {[%clk 0:02:38.4]}
22... Qb7 {[%clk 0:01:55]} 23. Ba5 {[%clk 0:02:30]} 23... Qb2 {[%clk 0:01:51.7]}
24. Rfd1 {[%clk 0:02:20.4]} 24... e5 {[%clk 0:01:46.8]} 25. Bb6 {[%clk
0:01:32.6]} 25... Qxd2 {[%clk 0:01:44.2]} 26. Rxd2 {[%clk 0:01:32.3]} 26... exf4
{[%clk 0:01:42.5]} 27. exf4 {[%clk 0:01:31.9]} 27... f5 {[%clk 0:01:41.7]} 28.
Bc7 {[%clk 0:01:22]} 28... Rb4 {[%clk 0:01:33.3]} 29. Be5 {[%clk 0:01:20.8]}
29... Bxe5 {[%clk 0:01:32.5]} 30. fxe5 {[%clk 0:01:21.1]} 30... Kf7 {[%clk
0:01:31.2]} 31. Rf1 {[%clk 0:01:15.4]} 31... Ke6 {[%clk 0:01:30.9]} 32. a5
{[%clk 0:01:11.1]} 32... Rfb8 {[%clk 0:01:24.4]} 33. g4 {[%clk 0:01:10.6]} 33...
Ra4 {[%clk 0:01:14.6]} 34. gxf5+ {[%clk 0:01:09.8]} 34... gxf5 {[%clk
0:01:14.7]} 35. Rdf2 {[%clk 0:01:09.8]} 35... Rf8 {[%clk 0:01:09.7]} 36. Rf4
{[%clk 0:01:02.1]} 36... Rxa5 {[%clk 0:01:08.6]} 37. Rh4 {[%clk 0:01:01.9]}
37... Rg8+ {[%clk 0:00:55.1]} 38. Kh1 {[%clk 0:01:00.6]} 38... Ra4 {[%clk
0:00:37.2]} 39. Rh6+ {[%clk 0:00:59.5]} 39... Rg6 {[%clk 0:00:36.1]} 40. Rxh7
{[%clk 0:00:46.2]} 40... Rxd4 {[%clk 0:00:34.7]} 41. Ra1 {[%clk 0:00:32.1]}
41... Kxe5 {[%clk 0:00:27.5]} 42. Re7+ {[%clk 0:00:28.3]} 42... Re6 {[%clk
0:00:20.3]} 43. Rf7 {[%clk 0:00:20.1]} 43... Rc4 {[%clk 0:00:18.5]} 44. Rxa6
{[%clk 0:00:19.7]} 44... Rxc5 {[%clk 0:00:18.5]} 45. Ra2 {[%clk 0:00:17.3]}
45... Rc4 {[%clk 0:00:18.4]} 46. Rf2 {[%clk 0:00:16.3]} 46... f4 {[%clk
0:00:17.5]} 47. Kg2 {[%clk 0:00:15.5]} 47... Rg6+ {[%clk 0:00:16.9]} 48. Kh2
{[%clk 0:00:14.5]} 48... Re4 {[%clk 0:00:16.5]} 49. h4 {[%clk 0:00:14.1]} 49...
Rf6 {[%clk 0:00:14]} 50. Re7+ {[%clk 0:00:13.2]} 50... Re6 {[%clk 0:00:14.2]}
51. Rf7 {[%clk 0:00:13.3]} 51... c5 {[%clk 0:00:14.4]} 52. Kh3 {[%clk
0:00:09.6]} 52... c4 {[%clk 0:00:12.8]} 53. h5 {[%clk 0:00:09]} 53... c3 {[%clk
0:00:11.6]} 54. Rc7 {[%clk 0:00:08.2]} 54... d4 {[%clk 0:00:11.7]} 55. Kh4
{[%clk 0:00:08.7]} 55... Kf5 {[%clk 0:00:07.2]} 56. Rf7+ {[%clk 0:00:07.7]}
56... Rf6 {[%clk 0:00:06.9]} 57. Rc7 {[%clk 0:00:06]} 57... f3+ {[%clk
0:00:06.7]} 58. Kg3 {[%clk 0:00:05.1]} 58... Rg4+ {[%clk 0:00:06.9]} 59. Kxf3
{[%clk 0:00:04.5]} 59... Rf4+ {[%clk 0:00:07.2]} 60. Kg3 {[%clk 0:00:04.2]}
60... Rxf2 {[%clk 0:00:07.4]} 61. Kxf2 {[%clk 0:00:04.3]} 61... Ke4+ {[%clk
0:00:08.1]} 62. Ke1 {[%clk 0:00:03]} 62... Kd3 {[%clk 0:00:08.1]} 0-1